[Event "*** Titled Tuesday Blitz"]
[Site "Chess.com"]
[Date "2020.11.24"]
[Round "4"]
[White "bratkoo"]
[Black "Chernov_Mikhail"]
[Result "1-0"]
[WhiteElo "2504"]
[BlackElo "2326"]
[TimeControl "180+1"]
[EndTime "10:54:24 PST"]
[Termination "bratkoo won by resignation"]

1. e4 {[%clk 0:03:00.9]} 1... c5 {[%clk 0:02:59.8]} 2. Nf3 {[%clk 0:02:59.5]}
2... Nc6 {[%clk 0:03:00]} 3. d4 {[%clk 0:03:00.4]} 3... cxd4 {[%clk 0:03:00.9]}
4. Nxd4 {[%clk 0:03:01]} 4... Nf6 {[%clk 0:03:00.7]} 5. Nc3 {[%clk 0:02:59.9]}
5... d6 {[%clk 0:03:00.2]} 6. h3 {[%clk 0:02:59.1]} 6... e5 {[%clk 0:03:00.2]}
7. Nf3 {[%clk 0:02:59.2]} 7... Be7 {[%clk 0:03:00.7]} 8. Bc4 {[%clk 0:02:59]}
8... h6 {[%clk 0:02:56.3]} 9. O-O {[%clk 0:02:58.5]} 9... O-O {[%clk 0:02:56.8]}
10. Qe2 {[%clk 0:02:58.1]} 10... Be6 {[%clk 0:02:44.3]} 11. Bb3 {[%clk
0:02:57.3]} 11... Rc8 {[%clk 0:02:39.4]} 12. Rd1 {[%clk 0:02:57.5]} 12... a6
{[%clk 0:02:34.9]} 13. Be3 {[%clk 0:02:56.3]} 13... Qa5 {[%clk 0:02:25.9]} 14.
Nh4 {[%clk 0:02:51.9]} 14... Rfd8 {[%clk 0:02:05.5]} 15. Ng6 {[%clk 0:02:24.7]}
15... Bxb3 {[%clk 0:01:54.4]} 16. axb3 {[%clk 0:02:20.4]} 16... Qc7 {[%clk
0:01:53.5]} 17. Nh4 {[%clk 0:02:08.4]} 17... Nxe4 {[%clk 0:01:34.5]} 18. Nd5
{[%clk 0:02:06.6]} 18... Qd7 {[%clk 0:01:11.7]} 19. Nb6 {[%clk 0:02:06.2]} 19...
Qe6 {[%clk 0:01:11.6]} 20. Nxc8 {[%clk 0:02:06.3]} 20... Rxc8 {[%clk 0:00:51.9]}
21. Nf3 {[%clk 0:01:57.8]} 21... d5 {[%clk 0:00:52.2]} 22. c4 {[%clk 0:01:55.5]}
22... d4 {[%clk 0:00:46.2]} 23. Bxh6 {[%clk 0:01:54.4]} 23... Nxf2 {[%clk
0:00:38]} 24. Qxf2 {[%clk 0:01:43.7]} 24... Qxh6 {[%clk 0:00:37.8]} 25. Nd2
{[%clk 0:01:33]} 25... Bg5 {[%clk 0:00:37.7]} 26. Kh1 {[%clk 0:01:30.5]} 26...
Be3 {[%clk 0:00:35.8]} 27. Qf5 {[%clk 0:01:27.5]} 27... Re8 {[%clk 0:00:34.5]}
28. Ne4 {[%clk 0:01:26.2]} 28... Re6 {[%clk 0:00:30.1]} 29. Rf1 {[%clk
0:01:25.2]} 29... Qg6 {[%clk 0:00:26.8]} 30. Nc5 {[%clk 0:01:18.8]} 30... Qxf5
{[%clk 0:00:25]} 31. Rxf5 {[%clk 0:01:17.6]} 31... Re7 {[%clk 0:00:25.6]} 32. g4
{[%clk 0:01:13.6]} 32... f6 {[%clk 0:00:20.5]} 33. Kg2 {[%clk 0:01:12.2]} 33...
Nb4 {[%clk 0:00:20.2]} 34. Rd1 {[%clk 0:01:10.1]} 34... Nc2 {[%clk 0:00:17.7]}
35. Kf3 {[%clk 0:01:08.6]} 35... g6 {[%clk 0:00:17.4]} 36. Rxf6 {[%clk
0:01:08.5]} 36... Bg5 {[%clk 0:00:17.7]} 37. Rxg6+ {[%clk 0:01:08]} 37... Rg7
{[%clk 0:00:18.4]} 38. Rxg7+ {[%clk 0:01:08.2]} 38... Kxg7 {[%clk 0:00:19.3]}
39. Ke4 {[%clk 0:01:08.2]} 39... Bf4 {[%clk 0:00:18.9]} 40. Ne6+ {[%clk
0:01:07]} 40... Kf6 {[%clk 0:00:18.8]} 41. Nxf4 {[%clk 0:01:07.9]} 1-0

[Event "*** Titled Tuesday Blitz"]
[Site "Chess.com"]
[Date "2020.11.24"]
[Round "4"]
[White "pavelalexandru07"]
[Black "Angel_Hranitel_37"]
[Result "0-1"]
[WhiteElo "2298"]
[BlackElo "2484"]
[TimeControl "180+1"]
[EndTime "10:54:26 PST"]
[Termination "Angel_Hranitel_37 won by resignation"]

1. d4 {[%clk 0:03:00.9]} 1... Nf6 {[%clk 0:02:59.4]} 2. c4 {[%clk 0:03:00.4]}
2... g6 {[%clk 0:02:59.8]} 3. Nc3 {[%clk 0:02:59.1]} 3... Bg7 {[%clk 0:03:00.3]}
4. e4 {[%clk 0:02:59]} 4... d6 {[%clk 0:03:01]} 5. Be2 {[%clk 0:02:58.9]} 5...
O-O {[%clk 0:03:01.6]} 6. Be3 {[%clk 0:02:59.1]} 6... e5 {[%clk 0:03:02.2]} 7.
d5 {[%clk 0:02:59.7]} 7... Na6 {[%clk 0:02:55.4]} 8. g4 {[%clk 0:02:59.5]} 8...
Nc5 {[%clk 0:02:55.7]} 9. f3 {[%clk 0:02:59.3]} 9... h5 {[%clk 0:02:53.3]} 10.
g5 {[%clk 0:02:51.4]} 10... Nh7 {[%clk 0:02:53.5]} 11. Qd2 {[%clk 0:02:48.5]}
11... f6 {[%clk 0:02:49.1]} 12. gxf6 {[%clk 0:02:28.2]} 12... Bxf6 {[%clk
0:02:49.1]} 13. O-O-O {[%clk 0:01:53.1]} 13... Bg5 {[%clk 0:02:40.2]} 14. b4
{[%clk 0:01:51.8]} 14... Na6 {[%clk 0:02:37.3]} 15. a3 {[%clk 0:01:51.5]} 15...
Bxe3 {[%clk 0:02:25.1]} 16. Qxe3 {[%clk 0:01:50.8]} 16... Qg5 {[%clk 0:02:26]}
17. Qxg5 {[%clk 0:01:49.4]} 17... Nxg5 {[%clk 0:02:26.9]} 18. h4 {[%clk
0:01:34.3]} 18... Nh7 {[%clk 0:02:16.2]} 19. Nh3 {[%clk 0:01:02.1]} 19... Bxh3
{[%clk 0:02:14.2]} 20. Rxh3 {[%clk 0:01:00.5]} 20... Rf6 {[%clk 0:02:14.9]} 21.
Kd2 {[%clk 0:00:27.2]} 21... Nb8 {[%clk 0:02:11.4]} 22. Ke3 {[%clk 0:00:27.2]}
22... a5 {[%clk 0:02:10.9]} 23. c5 {[%clk 0:00:25.2]} 23... axb4 {[%clk
0:02:10.6]} 24. axb4 {[%clk 0:00:25.5]} 24... Ra3 {[%clk 0:02:09.6]} 25. Rd3
{[%clk 0:00:24.9]} 25... Na6 {[%clk 0:02:07.8]} 26. Nb5 {[%clk 0:00:05.1]} 26...
Rxd3+ {[%clk 0:02:07.4]} 27. Bxd3 {[%clk 0:00:05.5]} 27... dxc5 {[%clk
0:02:07.9]} 28. Nxc7 {[%clk 0:00:05.8]} 28... Nxc7 {[%clk 0:02:06.9]} 29. bxc5
{[%clk 0:00:06.3]} 29... Nf8 {[%clk 0:02:05.4]} 30. Rh1 {[%clk 0:00:06.4]} 30...
Nd7 {[%clk 0:02:05.8]} 31. Rc1 {[%clk 0:00:06.5]} 31... Kf7 {[%clk 0:02:00.4]}
32. Bc4 {[%clk 0:00:05.3]} 32... Ke8 {[%clk 0:01:58]} 33. Ba2 {[%clk 0:00:04.6]}
33... Kd8 {[%clk 0:01:54.1]} 34. c6 {[%clk 0:00:04]} 34... bxc6 {[%clk
0:01:54.1]} 35. dxc6 {[%clk 0:00:04.9]} 35... Nb8 {[%clk 0:01:54.9]} 36. Bd5
{[%clk 0:00:05.2]} 36... Ke7 {[%clk 0:01:54]} 37. Rb1 {[%clk 0:00:04.3]} 37...
Nxc6 {[%clk 0:01:54.5]} 38. Rb6 {[%clk 0:00:03.6]} 38... Kd7 {[%clk 0:01:45.1]}
39. Rb7 {[%clk 0:00:02.6]} 39... Nd4 {[%clk 0:01:38.8]} 40. Rb1 {[%clk
0:00:02.2]} 40... Rxf3+ {[%clk 0:01:38.7]} 41. Kd2 {[%clk 0:00:02]} 41... Nxd5
{[%clk 0:01:39.4]} 42. exd5 {[%clk 0:00:02.9]} 42... Kd6 {[%clk 0:01:38.6]} 43.
Rb6+ {[%clk 0:00:02.6]} 43... Kxd5 {[%clk 0:01:39.5]} 44. Rxg6 {[%clk 0:00:03]}
44... Rf4 {[%clk 0:01:40.1]} 45. Rg5 {[%clk 0:00:02.8]} 45... Rxh4 {[%clk
0:01:40.6]} 46. Rg6 {[%clk 0:00:02.4]} 46... Nf3+ {[%clk 0:01:41.1]} 47. Kc1
{[%clk 0:00:03]} 47... Nd4 {[%clk 0:01:42]} 48. Rf6 {[%clk 0:00:03.3]} 48... Ke4
{[%clk 0:01:42.2]} 49. Kb2 {[%clk 0:00:04]} 49... Rf4 {[%clk 0:01:42.7]} 0-1

[Event "*** Titled Tuesday Blitz"]
[Site "Chess.com"]
[Date "2020.11.24"]
[Round "4"]
[White "PawnEatingZombie"]
[Black "Eternauta2400"]
[Result "0-1"]
[WhiteElo "2261"]
[BlackElo "2454"]
[TimeControl "180+1"]
[EndTime "10:54:27 PST"]
[Termination "Eternauta2400 won on time"]

1. d4 {[%clk 0:03:00.9]} 1... Nf6 {[%clk 0:02:55.4]} 2. c4 {[%clk 0:03:00.7]}
2... c5 {[%clk 0:02:54.6]} 3. d5 {[%clk 0:02:59.3]} 3... b5 {[%clk 0:02:54.4]}
4. cxb5 {[%clk 0:03:00.2]} 4... a6 {[%clk 0:02:53.2]} 5. e3 {[%clk 0:03:01.1]}
5... g6 {[%clk 0:02:53]} 6. Nc3 {[%clk 0:02:59.8]} 6... Bg7 {[%clk 0:02:53.9]}
7. a4 {[%clk 0:02:58.6]} 7... O-O {[%clk 0:02:54.8]} 8. Nf3 {[%clk 0:02:58.1]}
8... d6 {[%clk 0:02:54.7]} 9. e4 {[%clk 0:02:56.8]} 9... axb5 {[%clk 0:02:48.1]}
10. Bxb5 {[%clk 0:02:55.7]} 10... Ba6 {[%clk 0:02:48.5]} 11. Qc2 {[%clk
0:02:41.1]} 11... Bxb5 {[%clk 0:02:46.1]} 12. Nxb5 {[%clk 0:02:40.7]} 12... Qa5+
{[%clk 0:02:41.2]} 13. Bd2 {[%clk 0:02:40.7]} 13... Qxb5 {[%clk 0:02:39.3]} 14.
axb5 {[%clk 0:02:39.8]} 14... Rxa1+ {[%clk 0:02:40.2]} 15. Bc1 {[%clk
0:02:39.8]} 15... Nxe4 {[%clk 0:02:37.4]} 16. O-O {[%clk 0:02:38.4]} 16... Nf6
{[%clk 0:02:33.3]} 17. Rd1 {[%clk 0:01:51.1]} 17... Nbd7 {[%clk 0:02:30.1]} 18.
Qe2 {[%clk 0:01:09.6]} 18... Re8 {[%clk 0:02:12.1]} 19. Ng5 {[%clk 0:01:03.9]}
19... Nb6 {[%clk 0:02:08.5]} 20. h4 {[%clk 0:00:33.5]} 20... h6 {[%clk
0:02:04.3]} 21. Ne4 {[%clk 0:00:32.5]} 21... Nxe4 {[%clk 0:02:03.3]} 22. Qxe4
{[%clk 0:00:30.6]} 22... Bxb2 {[%clk 0:02:01.8]} 23. Qc2 {[%clk 0:00:17.9]}
23... Rxc1 {[%clk 0:02:00.2]} 24. Rxc1 {[%clk 0:00:18.8]} 24... Bxc1 {[%clk
0:02:01.1]} 25. Qxc1 {[%clk 0:00:18.4]} 25... Nxd5 {[%clk 0:02:01.8]} 26. Qxh6
{[%clk 0:00:17.8]} 26... Rb8 {[%clk 0:01:57.1]} 27. h5 {[%clk 0:00:17.6]} 27...
gxh5 {[%clk 0:01:46.2]} 28. Qxh5 {[%clk 0:00:17.6]} 28... e6 {[%clk 0:01:42.5]}
29. Qg5+ {[%clk 0:00:16.2]} 29... Kf8 {[%clk 0:01:42.2]} 30. Qh6+ {[%clk
0:00:15.5]} 30... Ke7 {[%clk 0:01:41.9]} 31. g4 {[%clk 0:00:13.7]} 31... Rxb5
{[%clk 0:01:41.2]} 32. g5 {[%clk 0:00:13.9]} 32... Rb1+ {[%clk 0:01:41]} 33. Kh2
{[%clk 0:00:13.2]} 33... Rb2 {[%clk 0:01:33.1]} 34. g6 {[%clk 0:00:12.2]} 34...
Rxf2+ {[%clk 0:01:21.6]} 35. Kg3 {[%clk 0:00:12.2]} 35... Rf6 {[%clk 0:01:21.7]}
36. Qg5 {[%clk 0:00:05.5]} 36... fxg6 {[%clk 0:01:16.7]} 37. Kh2 {[%clk
0:00:05.6]} 37... Kf7 {[%clk 0:01:15.8]} 38. Qh6 {[%clk 0:00:05]} 38... Rf5
{[%clk 0:01:15.6]} 39. Qh7+ {[%clk 0:00:04.8]} 39... Kf6 {[%clk 0:01:16.2]} 40.
Qd7 {[%clk 0:00:03.7]} 40... Ke5 {[%clk 0:01:13.3]} 41. Qg7+ {[%clk 0:00:02]}
41... Rf6 {[%clk 0:01:13.7]} 0-1

[Event "*** Titled Tuesday Blitz"]
[Site "Chess.com"]
[Date "2020.11.24"]
[Round "4"]
[White "HaryKane"]
[Black "sasko1234"]
[Result "0-1"]
[WhiteElo "2591"]
[BlackElo "2456"]
[TimeControl "180+1"]
[EndTime "10:54:31 PST"]
[Termination "sasko1234 won by resignation"]

1. e4 {[%clk 0:03:00.9]} 1... c6 {[%clk 0:02:57.7]} 2. d4 {[%clk 0:03:00.7]}
2... Na6 {[%clk 0:02:56.7]} 3. c4 {[%clk 0:02:54.2]} 3... Nc7 {[%clk 0:02:55.7]}
4. Nc3 {[%clk 0:02:54.1]} 4... d5 {[%clk 0:02:55.1]} 5. Be3 {[%clk 0:02:48.8]}
5... dxe4 {[%clk 0:02:54.2]} 6. Nxe4 {[%clk 0:02:48.5]} 6... Nf6 {[%clk
0:02:54.7]} 7. Nxf6+ {[%clk 0:02:48.2]} 7... exf6 {[%clk 0:02:55.2]} 8. Bd3
{[%clk 0:02:48.2]} 8... g6 {[%clk 0:02:54.1]} 9. Qc2 {[%clk 0:02:38.5]} 9...
Bb4+ {[%clk 0:02:51.9]} 10. Kf1 {[%clk 0:02:35.2]} 10... O-O {[%clk 0:02:44.6]}
11. h4 {[%clk 0:02:34.9]} 11... h5 {[%clk 0:02:43.4]} 12. Bxg6 {[%clk
0:02:33.2]} 12... fxg6 {[%clk 0:02:34.5]} 13. Qxg6+ {[%clk 0:02:34.1]} 13... Kh8
{[%clk 0:02:33.4]} 14. Qxh5+ {[%clk 0:02:34.3]} 14... Kg8 {[%clk 0:02:32.6]} 15.
Bh6 {[%clk 0:02:15.7]} 15... Qe8 {[%clk 0:02:22.5]} 16. Qf3 {[%clk 0:02:05.2]}
16... Rf7 {[%clk 0:02:05.7]} 17. Nh3 {[%clk 0:01:58.7]} 17... Re7 {[%clk
0:02:02.5]} 18. Be3 {[%clk 0:01:36.1]} 18... Qg6 {[%clk 0:01:57]} 19. Nf4 {[%clk
0:01:19.5]} 19... Qg4 {[%clk 0:01:56]} 20. a3 {[%clk 0:01:16.9]} 20... Bd6
{[%clk 0:01:50.7]} 21. Nh5 {[%clk 0:01:14.6]} 21... Qxf3 {[%clk 0:01:41.7]} 22.
gxf3 {[%clk 0:01:15.5]} 22... Rf7 {[%clk 0:01:41.1]} 23. Rg1+ {[%clk 0:01:10.9]}
23... Kh7 {[%clk 0:01:39.7]} 24. Ke2 {[%clk 0:01:09]} 24... Be6 {[%clk
0:01:28.8]} 25. b3 {[%clk 0:01:05.3]} 25... Re8 {[%clk 0:01:26.1]} 26. Rg2
{[%clk 0:01:01.1]} 26... Rg8 {[%clk 0:01:20.8]} 27. Rxg8 {[%clk 0:00:56.6]}
27... Kxg8 {[%clk 0:01:20.1]} 28. Rg1+ {[%clk 0:00:55.6]} 28... Kh7 {[%clk
0:01:19.3]} 29. Nf4 {[%clk 0:00:55.6]} 29... Bf5 {[%clk 0:01:06.8]} 30. b4
{[%clk 0:00:47.7]} 30... Bxf4 {[%clk 0:01:01.5]} 31. Bxf4 {[%clk 0:00:47.4]}
31... Ne6 {[%clk 0:01:00.3]} 32. Be3 {[%clk 0:00:46.9]} 32... Rd7 {[%clk
0:00:59.4]} 33. Rd1 {[%clk 0:00:46.7]} 33... Bg6 {[%clk 0:00:58.6]} 34. d5
{[%clk 0:00:46.3]} 34... cxd5 {[%clk 0:00:57.8]} 35. cxd5 {[%clk 0:00:47.2]}
35... Nc7 {[%clk 0:00:56.8]} 36. d6 {[%clk 0:00:41.6]} 36... Nb5 {[%clk
0:00:56.2]} 37. a4 {[%clk 0:00:31.7]} 37... Nc3+ {[%clk 0:00:55.2]} 38. Ke1
{[%clk 0:00:31]} 38... Nxd1 {[%clk 0:00:54.9]} 39. Kxd1 {[%clk 0:00:31.9]} 39...
Rxd6+ {[%clk 0:00:55.1]} 40. Kc1 {[%clk 0:00:32.2]} 40... a6 {[%clk 0:00:55.3]}
41. Kb2 {[%clk 0:00:31.8]} 41... b5 {[%clk 0:00:52.7]} 42. a5 {[%clk 0:00:30.6]}
42... Rd3 {[%clk 0:00:48.6]} 0-1

[Event "*** Titled Tuesday Blitz"]
[Site "Chess.com"]
[Date "2020.11.24"]
[Round "4"]
[White "Azerichess"]
[Black "Zkid"]
[Result "1-0"]
[WhiteElo "2969"]
[BlackElo "2793"]
[TimeControl "180+1"]
[EndTime "10:54:32 PST"]
[Termination "Azerichess won by resignation"]

1. d4 {[%clk 0:03:00.9]} 1... d5 {[%clk 0:02:57]} 2. c4 {[%clk 0:03:01.2]} 2...
dxc4 {[%clk 0:02:57.4]} 3. e3 {[%clk 0:02:58.7]} 3... Nf6 {[%clk 0:02:57.2]} 4.
Bxc4 {[%clk 0:02:56.9]} 4... e6 {[%clk 0:02:56.3]} 5. Nf3 {[%clk 0:02:55.9]}
5... c5 {[%clk 0:02:56.6]} 6. O-O {[%clk 0:02:56.2]} 6... Nc6 {[%clk 0:02:55.4]}
7. Qe2 {[%clk 0:02:49.6]} 7... Be7 {[%clk 0:02:51.6]} 8. Rd1 {[%clk 0:02:49]}
8... Qc7 {[%clk 0:02:51.6]} 9. dxc5 {[%clk 0:02:42.4]} 9... O-O {[%clk
0:02:48.9]} 10. b3 {[%clk 0:02:40.3]} 10... Bxc5 {[%clk 0:02:44.9]} 11. Bb2
{[%clk 0:02:40.3]} 11... Qe7 {[%clk 0:02:40.7]} 12. h3 {[%clk 0:02:31.8]} 12...
a6 {[%clk 0:02:30.7]} 13. Nbd2 {[%clk 0:02:28.8]} 13... Ba3 {[%clk 0:02:25]} 14.
Bxa3 {[%clk 0:02:06.4]} 14... Qxa3 {[%clk 0:02:25.9]} 15. Bd3 {[%clk 0:02:06.8]}
15... Qe7 {[%clk 0:02:00.9]} 16. Ne4 {[%clk 0:02:01.6]} 16... Nxe4 {[%clk
0:01:55]} 17. Bxe4 {[%clk 0:02:01.4]} 17... h6 {[%clk 0:01:42.9]} 18. Bxc6
{[%clk 0:01:49.4]} 18... bxc6 {[%clk 0:01:43.8]} 19. Rac1 {[%clk 0:01:40.4]}
19... Bb7 {[%clk 0:01:39.3]} 20. Qc4 {[%clk 0:01:39.4]} 20... Rfd8 {[%clk
0:01:36.2]} 21. Ne5 {[%clk 0:01:37.7]} 21... Rxd1+ {[%clk 0:01:32.3]} 22. Rxd1
{[%clk 0:01:38.6]} 22... Rd8 {[%clk 0:01:32.2]} 23. Rd4 {[%clk 0:01:29.9]} 23...
Qc7 {[%clk 0:00:37.9]} 24. b4 {[%clk 0:01:16.1]} 24... Rxd4 {[%clk 0:00:30.6]}
25. exd4 {[%clk 0:01:07.6]} 25... a5 {[%clk 0:00:30]} 26. b5 {[%clk 0:01:07.1]}
26... c5 {[%clk 0:00:20.3]} 27. Qxc5 {[%clk 0:01:07]} 27... Qd8 {[%clk
0:00:20.5]} 28. Nc6 {[%clk 0:00:57.2]} 28... Qh4 {[%clk 0:00:19.7]} 29. Qb6
{[%clk 0:00:45.3]} 29... Qf4 {[%clk 0:00:19.6]} 30. g3 {[%clk 0:00:37.8]} 30...
Qe4 {[%clk 0:00:18.6]} 31. Qxb7 {[%clk 0:00:35.2]} 31... Qe1+ {[%clk 0:00:18.7]}
32. Kg2 {[%clk 0:00:35.6]} 32... Qe4+ {[%clk 0:00:19.4]} 33. Kh2 {[%clk
0:00:35.9]} 1-0

[Event "*** Titled Tuesday Blitz"]
[Site "Chess.com"]
[Date "2020.11.24"]
[Round "4"]
[White "PavelShkapenko"]
[Black "SaqoChess_Twitch"]
[Result "0-1"]
[WhiteElo "2678"]
[BlackElo "2518"]
[TimeControl "180+1"]
[EndTime "10:54:32 PST"]
[Termination "SaqoChess_Twitch won by resignation"]

1. e4 {[%clk 0:03:00.9]} 1... c5 {[%clk 0:02:56.8]} 2. c3 {[%clk 0:03:00.9]}
2... d5 {[%clk 0:02:56]} 3. exd5 {[%clk 0:02:59.1]} 3... Qxd5 {[%clk 0:02:56.4]}
4. Nf3 {[%clk 0:02:55.4]} 4... e6 {[%clk 0:02:55.9]} 5. d4 {[%clk 0:02:53.8]}
5... Nf6 {[%clk 0:02:56.2]} 6. Be2 {[%clk 0:02:52.1]} 6... Be7 {[%clk
0:02:56.5]} 7. O-O {[%clk 0:02:50.3]} 7... O-O {[%clk 0:02:57.1]} 8. c4 {[%clk
0:02:49]} 8... Qd6 {[%clk 0:02:56]} 9. dxc5 {[%clk 0:02:48.9]} 9... Qxd1 {[%clk
0:02:55.2]} 10. Rxd1 {[%clk 0:02:48.7]} 10... Bxc5 {[%clk 0:02:56.1]} 11. Nc3
{[%clk 0:02:49]} 11... Bd7 {[%clk 0:02:53.7]} 12. a3 {[%clk 0:02:48.9]} 12... a5
{[%clk 0:02:51.9]} 13. Ne5 {[%clk 0:02:45.2]} 13... Bc6 {[%clk 0:02:50.6]} 14.
Bg5 {[%clk 0:02:27.1]} 14... h6 {[%clk 0:02:49]} 15. Bxf6 {[%clk 0:02:15.6]}
15... gxf6 {[%clk 0:02:49.9]} 16. Nxc6 {[%clk 0:02:15.8]} 16... Nxc6 {[%clk
0:02:49.1]} 17. Rd7 {[%clk 0:02:13.1]} 17... b6 {[%clk 0:02:48.5]} 18. Ne4
{[%clk 0:02:10.1]} 18... Kg7 {[%clk 0:02:41.1]} 19. Rad1 {[%clk 0:01:57.8]}
19... Ne5 {[%clk 0:02:33.1]} 20. Rc7 {[%clk 0:01:53]} 20... Rac8 {[%clk
0:02:31.1]} 21. Rxc8 {[%clk 0:01:47.3]} 21... Rxc8 {[%clk 0:02:32]} 22. Nxc5
{[%clk 0:01:38.5]} 22... bxc5 {[%clk 0:02:26.7]} 23. Rd2 {[%clk 0:01:23.8]}
23... Nc6 {[%clk 0:02:22.2]} 24. Bd1 {[%clk 0:01:18.4]} 24... Nd4 {[%clk
0:02:22.3]} 25. b4 {[%clk 0:01:09.7]} 25... axb4 {[%clk 0:02:21.2]} 26. axb4
{[%clk 0:01:09.7]} 26... e5 {[%clk 0:02:13.8]} 27. b5 {[%clk 0:01:08.2]} 27...
Ra8 {[%clk 0:02:13.8]} 28. g3 {[%clk 0:01:05.4]} 28... Ra1 {[%clk 0:02:13.6]}
29. Kg2 {[%clk 0:01:05.7]} 29... Rc1 {[%clk 0:02:13.5]} 30. Be2 {[%clk
0:01:01.1]} 30... Rb1 {[%clk 0:01:45.7]} 31. Bf1 {[%clk 0:00:57.3]} 31... f5
{[%clk 0:01:42.4]} 32. Ra2 {[%clk 0:00:56.9]} 32... e4 {[%clk 0:01:39.1]} 33.
Rd2 {[%clk 0:00:25.5]} 33... Kf6 {[%clk 0:01:34.6]} 34. Ra2 {[%clk 0:00:21]}
34... Ke5 {[%clk 0:01:30]} 35. Rd2 {[%clk 0:00:20.7]} 35... f4 {[%clk
0:01:25.4]} 36. gxf4+ {[%clk 0:00:20.4]} 36... Kxf4 {[%clk 0:01:26.3]} 37. Ra2
{[%clk 0:00:20.9]} 37... f5 {[%clk 0:01:26.3]} 38. Rd2 {[%clk 0:00:18.4]} 38...
h5 {[%clk 0:01:26.6]} 39. Ra2 {[%clk 0:00:16.6]} 39... h4 {[%clk 0:01:27]} 40.
h3 {[%clk 0:00:17]} 40... Ke5 {[%clk 0:01:25.8]} 41. Ra5 {[%clk 0:00:13.1]}
41... Rb2 {[%clk 0:01:23.6]} 42. b6 {[%clk 0:00:13.6]} 42... e3 {[%clk
0:01:23.3]} 43. Rxc5+ {[%clk 0:00:12.4]} 43... Kf4 {[%clk 0:01:23.5]} 44. Rd5
{[%clk 0:00:12.3]} 44... Rxf2+ {[%clk 0:01:23.3]} 45. Kh1 {[%clk 0:00:12.1]}
45... Rxf1+ {[%clk 0:01:23.5]} 46. Kg2 {[%clk 0:00:12.5]} 46... Rf2+ {[%clk
0:01:24]} 47. Kh1 {[%clk 0:00:13]} 47... Nf3 {[%clk 0:01:23.6]} 0-1

[Event "*** Titled Tuesday Blitz"]
[Site "Chess.com"]
[Date "2020.11.24"]
[Round "4"]
[White "KetiGrant"]
[Black "BlackGod93"]
[Result "0-1"]
[WhiteElo "2404"]
[BlackElo "2212"]
[TimeControl "180+1"]
[EndTime "10:54:38 PST"]
[Termination "BlackGod93 won on time"]

1. e4 {[%clk 0:03:00.9]} 1... e5 {[%clk 0:02:45.2]} 2. Nf3 {[%clk 0:03:00]} 2...
Nc6 {[%clk 0:02:45.2]} 3. Bb5 {[%clk 0:03:00.4]} 3... a6 {[%clk 0:02:45.1]} 4.
Ba4 {[%clk 0:03:00.1]} 4... Nf6 {[%clk 0:02:45.2]} 5. O-O {[%clk 0:02:59.8]}
5... Nxe4 {[%clk 0:02:45.4]} 6. d4 {[%clk 0:02:57.5]} 6... b5 {[%clk 0:02:45.1]}
7. Bb3 {[%clk 0:02:56.7]} 7... d5 {[%clk 0:02:45.7]} 8. dxe5 {[%clk 0:02:52.3]}
8... Be6 {[%clk 0:02:46]} 9. a4 {[%clk 0:02:48.8]} 9... b4 {[%clk 0:02:33.2]}
10. a5 {[%clk 0:02:42.7]} 10... Bc5 {[%clk 0:02:31]} 11. Ba4 {[%clk 0:02:36.7]}
11... Qd7 {[%clk 0:02:21.6]} 12. c3 {[%clk 0:02:01.6]} 12... Rb8 {[%clk
0:02:09.1]} 13. Nd4 {[%clk 0:01:42.9]} 13... Bxd4 {[%clk 0:01:58.9]} 14. cxd4
{[%clk 0:01:42.1]} 14... b3 {[%clk 0:01:58.5]} 15. f3 {[%clk 0:01:30.6]} 15...
O-O {[%clk 0:01:55]} 16. fxe4 {[%clk 0:01:27.6]} 16... dxe4 {[%clk 0:01:55.9]}
17. Be3 {[%clk 0:01:24.8]} 17... Rb4 {[%clk 0:01:56.1]} 18. Nc3 {[%clk
0:01:22.9]} 18... Bd5 {[%clk 0:01:49.2]} 19. Rc1 {[%clk 0:01:14.2]} 19... Rxa4
{[%clk 0:01:49]} 20. Nxa4 {[%clk 0:01:12.9]} 20... Nxa5 {[%clk 0:01:49.5]} 21.
Nc5 {[%clk 0:01:07.7]} 21... Qe7 {[%clk 0:01:45.7]} 22. Qe2 {[%clk 0:00:56]}
22... Nc6 {[%clk 0:01:41.4]} 23. Qd2 {[%clk 0:00:49.1]} 23... a5 {[%clk
0:01:39.5]} 24. Bg5 {[%clk 0:00:34.4]} 24... f6 {[%clk 0:01:39.2]} 25. exf6
{[%clk 0:00:32.9]} 25... gxf6 {[%clk 0:01:40.1]} 26. Bh6 {[%clk 0:00:33]} 26...
Rd8 {[%clk 0:01:36]} 27. Qe3 {[%clk 0:00:26]} 27... Nb4 {[%clk 0:01:27.1]} 28.
Rf5 {[%clk 0:00:23.2]} 28... Nc2 {[%clk 0:01:24.1]} 29. Qg3+ {[%clk 0:00:21.1]}
29... Kh8 {[%clk 0:01:23.2]} 30. Rcf1 {[%clk 0:00:18.5]} 30... Nxd4 {[%clk
0:01:21.9]} 31. R5f2 {[%clk 0:00:13.4]} 31... Rg8 {[%clk 0:01:20.9]} 32. Qh4
{[%clk 0:00:11.6]} 32... Nf3+ {[%clk 0:01:20.2]} 33. Rxf3 {[%clk 0:00:08.8]}
33... exf3 {[%clk 0:01:21.1]} 34. g3 {[%clk 0:00:08.9]} 34... Qxc5+ {[%clk
0:01:21.4]} 35. Rf2 {[%clk 0:00:04.8]} 35... Qe7 {[%clk 0:01:16.5]} 36. Bd2
{[%clk 0:00:02.8]} 36... a4 {[%clk 0:01:12.8]} 37. Bc3 {[%clk 0:00:02.9]} 37...
Rg6 {[%clk 0:01:10.9]} 38. Qd4 {[%clk 0:00:02.5]} 38... Qe4 {[%clk 0:01:07.5]}
0-1